bitfinex/quotes_BTCUSD_20260104
["timestamp","ask_amount","ask_price","bid_price","bid_amount"]
[1767489090160,0.05904154,91376.0,91373.0,0.01099887]
[1767489090368,0.00094428,91373.0,91371.0,0.01094439]
[1767489090935,0.01094403,91374.0,91371.0,0.01094439]
[1767489091488,0.01094451,91370.0,91361.0,0.05472749]
[1767489091681,0.05472794,91361.0,91360.0,1e-08]
[1767489091880,0.06567424,91360.0,91354.0,0.04982288]
[1767489092039,0.05473027,91358.0,91354.0,0.04982288]
[1767489092242,0.05458795,91358.0,91354.0,0.04982288]
[1767489092760,0.01094606,91357.0,91354.0,0.0606693]
[1767489092981,0.01094606,91357.0,91354.0,0.01094642]
[1767489093138,0.01094618,91356.0,91352.0,0.01094666]
[1767489093336,0.02192,91362.0,91351.0,0.21893569]
[1767489093582,0.02192,91362.0,91360.0,0.05472851]
[1767489093755,0.0028068,91361.0,91360.0,0.06567421]
[1767489093959,0.0028068,91361.0,91359.0,0.01094582]
[1767489094317,0.0028068,91361.0,91358.0,0.01094594]
[1767489094500,0.01375238,91361.0,91357.0,0.01094606]
[1767489094843,0.04882974,91360.0,91357.0,0.01094606]
[1767489096681,0.05977544,91360.0,91357.0,0.01094606]
[1767489096854,0.04882974,91360.0,91356.0,0.01094618]
[1767489097210,0.01375238,91361.0,91356.0,0.01094618]
[1767489097650,0.01375238,91361.0,91354.0,0.02662445]
[1767489097651,0.0109457,91360.0,91354.0,0.02662445]
[1767489097854,0.06848075,91361.0,91356.0,0.06076906]
[1767489098703,0.01094582,91359.0,91356.0,0.06076906]
[1767489099283,0.01081613,91359.0,91356.0,0.06076906]
[1767489099478,0.0107278,91359.0,91356.0,0.06076906]
[1767489100712,0.01105372,91356.0,91353.0,0.04982288]
[1767489100945,0.01105372,91356.0,91350.0,0.0109469]
[1767489100946,0.0219999,91356.0,91350.0,0.0109469]
[1767489101074,0.07673139,91356.0,91350.0,0.06568103]
[1767489101270,0.01094642,91354.0,91351.0,0.01094678]
[1767489101547,0.0109463,91355.0,91351.0,0.01094678]
[1767489101711,0.0109463,91355.0,91351.0,0.06076966]
[1767489101918,0.0109463,91355.0,91351.0,0.05977066]
[1767489102482,0.01094606,91357.0,91353.0,0.01094654]
[1767489103143,0.01094618,91356.0,91353.0,0.01094654]
[1767489103377,0.0109463,91355.0,91351.0,0.00994778]
[1767489103570,0.0109463,91355.0,91338.0,0.21896637]
[1767489103571,0.01094738,91346.0,91341.0,0.01094798]
[1767489103840,0.01094738,91346.0,91343.0,0.01094774]
[1767489104475,0.01094702,91349.0,91345.0,0.0109475]
[1767489104605,0.06568219,91349.0,91346.0,0.000999]
[1767489104807,0.06568219,91349.0,91342.0,0.05473891]
[1767489104808,0.05977688,91348.0,91342.0,0.03758213]
[1767489104990,0.01094738,91346.0,91340.0,0.2189599]
[1767489105203,0.01094738,91346.0,91325.0,0.04997488]
[1767489105204,0.0109475,91345.0,91338.0,0.08760993]
[1767489105413,0.01094762,91344.0,91341.0,0.01094798]
[1767489105841,0.000999,91341.0,91338.0,0.01094834]
[1767489106088,0.01094786,91342.0,91339.0,0.01094822]
[1767489106439,0.01568719,91342.0,91339.0,0.04982288]
[1767489106640,0.01094774,91343.0,91339.0,0.04982288]
[1767489107405,0.0109475,91345.0,91339.0,0.11551215]
[1767489107568,0.04882974,91343.0,91339.0,0.01095018]
[1767489108499,0.01094786,91342.0,91338.0,0.01094834]
[1767489108984,0.03758135,91344.0,91342.0,0.04982288]
[1767489110179,0.0109475,91345.0,91342.0,0.04982288]
[1767489110383,0.01090054,91345.0,91344.0,0.000999]
[1767489110681,0.01085224,91345.0,91342.0,0.04982288]
[1767489110855,0.0655902,91345.0,91342.0,0.04982288]
[1767489111036,0.04882974,91342.0,91338.0,0.03758596]
[1767489111244,0.01094774,91343.0,91338.0,0.02663822]
[1767489111444,0.01085753,91343.0,91339.0,0.01094822]
[1767489111662,0.01085753,91343.0,91337.0,0.01094846]
[1767489111663,0.01094798,91341.0,91337.0,0.01094846]
[1767489112064,0.01094798,91341.0,91338.0,0.01094834]
[1767489112441,0.01094798,91341.0,91339.0,0.04982288]
[1767489112981,0.02663539,91342.0,91341.0,0.04982288]
[1767489113190,0.01094798,91363.0,91329.0,0.01094942]
[1767489113191,0.01085999,91338.0,91329.0,0.01094942]
[1767489113398,0.01086048,91334.0,91332.0,0.04982288]
[1767489113561,0.06560211,91338.0,91334.0,0.04982288]
[1767489113562,0.00930973,91337.0,91334.0,0.04982288]
[1767489113997,0.01085999,91338.0,91334.0,0.04982288]
[1767489114198,0.01094846,91337.0,91334.0,0.04982288]
[1767489114402,0.0109481,91340.0,91334.0,0.04982288]
[1767489114563,0.01094834,91338.0,91334.0,0.0607717]
[1767489114962,0.01094906,91332.0,91325.0,0.06092478]
[1767489115363,0.01094942,91329.0,91327.0,0.04982288]
[1767489115772,0.01094918,91331.0,91327.0,0.01094966]
[1767489115998,0.02192,91332.0,91329.0,0.01094942]
[1767489117571,0.04882974,91331.0,91329.0,0.01094942]
[1767489117816,0.04882974,91331.0,91326.0,0.05474892]
[1767489117988,0.04882974,91331.0,91328.0,0.05474772]
[1767489118404,0.04873953,91331.0,91328.0,0.05474772]
[1767489119037,0.04873953,91331.0,91321.0,0.01095038]
[1767489119038,0.05474936,91326.0,91321.0,0.01095038]
[1767489119352,0.02192,91325.0,91322.0,0.01095026]
[1767489119781,0.02192,91325.0,91322.0,0.06570109]
[1767489119980,0.01192,91325.0,91322.0,0.06570109]
[1767489120182,0.01094966,91327.0,91325.0,0.04593314]
[1767489120385,0.02192,91326.0,91324.0,0.04593314]
[1767489120588,0.01569681,91329.0,91324.0,0.05688316]
[1767489120790,0.02192,91328.0,91324.0,0.01095002]
[1767489121187,0.05474892,91326.0,91322.0,0.01095026]
[1767489121396,0.00799801,91321.0,91315.0,0.0109511]
[1767489121690,0.00799801,91321.0,91305.0,0.21904372]
[1767489121691,0.0109517,91310.0,91303.0,0.02865444]
[1767489121821,0.0109517,91310.0,91300.0,0.05476424]
[1767489121822,0.01086148,91310.0,91307.0,1e-08]
[1767489122025,0.05475958,91309.0,91307.0,1e-08]
[1767489123187,0.01086148,91310.0,91307.0,1e-08]
[1767489123576,0.06562057,91310.0,91307.0,1e-08]
[1767489124014,0.02192,91309.0,91307.0,1e-08]
[1767489124221,0.05475971,91308.0,91307.0,1e-08]
[1767489124617,0.07667971,91308.0,91307.0,1e-08]
[1767489125272,0.07667971,91308.0,91299.0,0.01095302]
[1767489125273,0.01095242,91304.0,91299.0,0.01095302]
[1767489125425,0.05752083,91303.0,91298.0,0.0547655]
[1767489125640,0.05743062,91303.0,91285.0,0.26502525]
[1767489125818,0.05743062,91303.0,91297.0,0.05476573]
[1767489126045,0.05743062,91303.0,91299.0,0.01095302]
[1767489127461,0.05743062,91303.0,91297.0,0.06571899]
[1767489127664,0.03287242,91304.0,91301.0,0.06571669]
[1767489127665,0.02192,91304.0,91301.0,0.06571669]
[1767489128044,0.02192,91304.0,91303.0,0.05476271]
[1767489128444,0.02192,91304.0,91301.0,0.06571669]
[1767489129273,0.02192,91304.0,91303.0,0.05476271]
[1767489129675,0.02192,91304.0,91301.0,0.06571669]
[1767489130677,0.000999,91301.0,91300.0,0.0109529]
[1767489130916,0.01095338,91296.0,91291.0,0.01095398]
[1767489131074,0.05476691,91296.0,91291.0,0.01095398]
[1767489131902,0.03287314,91298.0,91294.0,0.01095362]
[1767489132096,0.02192,91298.0,91295.0,0.0109535]
[1767489132298,0.0109535,91295.0,91294.0,0.01095362]
[1767489132820,0.01095326,91297.0,91294.0,0.01095362]
[1767489133114,0.02192,91298.0,91295.0,0.0109535]
[1767489133348,0.03287314,91298.0,91292.0,0.01095386]
[1767489133513,0.03287314,91298.0,91293.0,0.06572245]
[1767489133711,0.13420726,91298.0,91293.0,0.01095374]
[1767489134118,0.01095326,91297.0,91293.0,0.01095374]
[1767489134723,0.03287314,91298.0,91294.0,0.01095362]
[1767489135105,0.01095326,91297.0,91293.0,0.01095374]
[1767489135307,0.03287314,91298.0,91294.0,0.06572173]
[1767489135566,0.03287314,91298.0,91295.0,0.0109535]
[1767489135714,0.03287314,91298.0,91291.0,0.01095398]
[1767489135715,0.05476991,91291.0,91289.0,1e-08]
[1767489135920,0.0766397,91291.0,91289.0,1e-08]
[1767489136260,0.0766397,91291.0,91279.0,0.01095542]
[1767489136261,0.01095482,91284.0,91279.0,0.01095542]
[1767489136388,0.00995594,91283.0,91278.0,0.01095554]
[1767489136584,0.03182572,91283.0,91279.0,0.01095542]
[1767489136832,0.03182572,91283.0,91279.0,0.01106292]
[1767489136833,0.03291494,91283.0,91279.0,0.01106292]
[1767489137039,0.05752335,91282.0,91279.0,0.0001075]
[1767489137277,0.0008915,91279.0,91277.0,0.01095566]
[1767489137405,0.39689239,91290.0,91282.0,0.06573037]
[1767489137607,0.39689239,91290.0,91279.0,0.01095542]
[1767489137608,0.05752299,91285.0,91279.0,0.01095542]
[1767489137828,0.05752299,91285.0,91277.0,0.00035868]
[1767489137829,0.01095518,91281.0,91277.0,0.00035868]
[1767489138037,0.03280718,91281.0,91277.0,0.01131434]
[1767489138578,0.04656829,91280.0,91278.0,0.01095554]
[1767489138785,0.04647808,91280.0,91278.0,0.01095554]
[1767489138984,0.02196,91281.0,91278.0,0.01095554]
[1767489139392,0.05477891,91276.0,91269.0,0.01095662]
[1767489139589,0.05477891,91276.0,91250.0,0.01817646]
[1767489139590,0.01095674,91268.0,91261.0,0.01095758]
[1767489139792,0.28459904,91270.0,91264.0,0.01095722]
[1767489139965,0.01095662,91269.0,91265.0,0.0109571]
[1767489140289,0.04656829,91268.0,91248.0,0.04593314]
[1767489140497,0.04656829,91268.0,91266.0,0.05478491]
[1767489140688,0.0109559,91275.0,91272.0,0.04593314]
[1767489140889,0.02196,91271.0,91270.0,0.05688964]
[1767489141089,0.02196,91272.0,91268.0,0.06573992]
[1767489141292,0.08769769,91272.0,91267.0,0.01095686]
[1767489141457,0.02196,91272.0,91269.0,0.01095662]
[1767489142074,0.02196,91272.0,91269.0,0.05688976]
[1767489142278,0.02196,91271.0,91270.0,0.0109565]
[1767489142486,0.01095602,91274.0,91270.0,0.0109565]
[1767489142692,0.02196,91273.0,91270.0,0.05688964]
[1767489143162,0.02196,91272.0,91270.0,0.04593314]
[1767489143828,0.01095662,91269.0,91263.0,0.01095734]
[1767489144030,0.01095698,91266.0,91262.0,0.11167765]
[1767489144288,0.0109571,91265.0,91262.0,0.04593314]
[1767489144395,0.01095674,91268.0,91263.0,0.05478671]
[1767489144616,0.01095686,91267.0,91262.0,0.01095746]
[1767489145061,0.01095686,91267.0,91263.0,0.01095734]
[1767489145261,0.01095686,91267.0,91264.0,0.01095722]
[1767489145688,0.01095722,91264.0,91259.0,0.04593314]
[1767489145858,0.01095722,91264.0,91257.0,0.01095806]
[1767489145859,0.01095818,91256.0,91252.0,0.01121809]
[1767489146063,0.0109583,91255.0,91252.0,0.04619257]
[1767489146868,0.0109583,91255.0,91252.0,0.01121809]
[1767489147072,0.00995918,91256.0,91253.0,0.01095854]
[1767489147474,0.00995918,91256.0,91252.0,0.01121809]
[1767489147746,0.01095794,91258.0,91254.0,0.05689156]
[1767489147950,0.01095806,91257.0,91254.0,0.04593314]
[1767489149380,0.01095806,91257.0,91252.0,0.00025943]
[1767489149381,0.01958858,91254.0,91252.0,0.00025943]
[1767489149586,0.000999,91254.0,91252.0,0.04619257]
[1767489149785,0.0109583,91255.0,91252.0,0.04619257]
[1767489150474,0.0109583,91255.0,91252.0,0.04788423]
[1767489150679,0.0109583,91255.0,91252.0,0.03692557]
[1767489151326,0.0109583,91255.0,91247.0,0.06575549]
[1767489151327,0.02954824,91252.0,91247.0,0.01095926]
[1767489151704,0.02954824,91252.0,91238.0,0.04761089]
[1767489151705,0.01095938,91246.0,91239.0,0.05480064]
[1767489151909,0.0547991,91243.0,91235.0,0.06576422]
[1767489152120,0.06567148,91239.0,91235.0,0.04674077]
[1767489152331,0.05480287,91237.0,91235.0,5.098e-05]
[1767489152690,0.01096058,91236.0,91233.0,0.01096094]
[1767489152843,0.01096082,91234.0,91230.0,0.06576728]
[1767489153043,0.06576255,91238.0,91233.0,0.01096094]
[1767489153242,0.0767605,91241.0,91235.0,0.0109607]
[1767489153446,0.03291998,91241.0,91238.0,0.01096034]
[1767489153647,0.0109589,91250.0,91247.0,0.01095926]
[1767489153814,0.0109589,91250.0,91243.0,0.06575834]
[1767489153815,0.02196,91249.0,91243.0,0.06575834]
[1767489154009,0.01095914,91248.0,91244.0,0.01095962]
[1767489154214,0.03291914,91248.0,91244.0,0.01095962]
[1767489155067,0.02196,91248.0,91245.0,0.0109595]
[1767489155589,0.02196,91248.0,91245.0,0.0657565]
[1767489155784,0.04358792,91247.0,91241.0,0.05479992]
[1767489155925,0.02196,91248.0,91246.0,0.01095938]
[1767489156965,0.02196,91248.0,91246.0,0.04668979]
[1767489157865,0.02196,91248.0,91246.0,0.1014867]
[1767489158049,0.02196,91248.0,91247.0,0.04668979]
[1767489158860,0.06575252,91252.0,91248.0,0.05764893]
[1767489158861,0.02196,91249.0,91248.0,0.05764893]
[1767489159085,0.02196,91250.0,91249.0,0.05764881]
[1767489159284,0.02196,91250.0,91248.0,0.01095914]
[1767489159488,0.02196,91250.0,91246.0,0.05479654]
[1767489159489,0.01095782,91259.0,91256.0,0.04668979]
[1767489159731,0.02977346,91260.0,91256.0,0.03158653]
[1767489159930,0.02977346,91260.0,91254.0,0.01095842]
[1767489160452,0.01095806,91257.0,91253.0,0.01095854]
[1767489160581,0.01095818,91256.0,91253.0,0.01095854]
[1767489161612,0.01095806,91257.0,91253.0,0.01095854]
[1767489162014,0.06574813,91258.0,91253.0,0.01095854]
[1767489162214,0.06574813,91258.0,91254.0,0.01095842]
[1767489162640,0.04671871,91257.0,91254.0,0.01095842]
[1767489162841,0.06574813,91258.0,91254.0,0.01095842]
[1767489163040,0.01095806,91257.0,91254.0,0.01095842]
[1767489163666,0.01095794,91258.0,91255.0,0.0109583]
[1767489163863,0.01095782,91259.0,91255.0,0.0109583]
[1767489164287,0.01095794,91258.0,91254.0,0.06575001]
[1767489164872,0.01095794,91258.0,91255.0,0.0109583]
[1767489165273,0.01086959,91258.0,91255.0,0.0109583]
[1767489165845,0.06574669,91260.0,91256.0,0.01095818]
[1767489166052,0.01086935,91260.0,91257.0,0.01095806]
[1767489166237,0.01086935,91260.0,91256.0,0.01095818]
[1767489166593,0.01095782,91259.0,91256.0,0.01095818]
[1767489167192,0.04671871,91258.0,91253.0,0.00341599]
[1767489167335,0.04671871,91258.0,91256.0,0.05479082]
[1767489167539,0.04571971,91258.0,91256.0,0.04476892]
[1767489167967,0.01086935,91260.0,91257.0,0.04668979]
[1767489168166,0.01078099,91260.0,91257.0,0.04668979]
[1767489168381,0.0099194,91260.0,91257.0,0.04668979]
[1767489169204,0.0099194,91260.0,91257.0,0.02310461]
[1767489169429,0.0099194,91260.0,91257.0,0.03406267]
[1767489169581,0.0099194,91260.0,91258.0,0.04668979]
[1767489171228,0.0099194,91260.0,91258.0,0.04569079]
[1767489171585,0.06574287,91265.0,91261.0,0.04668979]
[1767489171925,0.01858958,91261.0,91258.0,0.04668979]
[1767489172123,0.07337799,91261.0,91258.0,0.04668979]
[1767489172495,0.02954716,91261.0,91258.0,0.04668979]
[1767489173385,0.01095758,91261.0,91258.0,0.04668979]
[1767489174370,0.05478851,91260.0,91258.0,0.04668979]
[1767489174777,0.05478851,91260.0,91256.0,0.05764797]
[1767489174979,0.01095758,91261.0,91257.0,0.01095806]
[1767489175145,0.01095758,91261.0,91257.0,0.05174728]
[1767489175501,0.01095758,91261.0,91258.0,0.01095794]
[1767489175635,0.01095758,91261.0,91257.0,0.01095806]
[1767489175834,0.0109577,91260.0,91256.0,0.00810012]
[1767489176037,0.01095782,91259.0,91255.0,0.06574958]
[1767489177472,0.00995882,91259.0,91255.0,0.06574958]
[1767489178219,0.01958858,91255.0,91250.0,0.06575289]
[1767489178663,0.000999,91255.0,91250.0,0.06575289]
[1767489178864,0.01095818,91256.0,91253.0,0.01095854]
[1767489179333,0.01095806,91257.0,91253.0,0.01095854]
[1767489179804,0.01095782,91259.0,91254.0,0.01095842]
[1767489180016,0.01095794,91258.0,91253.0,0.01095854]
[1767489180252,0.01095806,91257.0,91252.0,0.01095866]
[1767489180472,0.000999,91253.0,91252.0,0.01095866]
[1767489180901,0.13133054,91260.0,91256.0,0.01095818]
[1767489181109,0.02954689,91276.0,91269.0,0.05478265]
[1767489181336,0.01858958,91269.0,91265.0,0.0109571]
[1767489181577,0.01858958,91269.0,91267.0,0.05478431]
[1767489181804,0.00652541,91269.0,91267.0,0.05478431]
[1767489181997,0.03291626,91272.0,91266.0,0.01095698]
[1767489181998,0.01095638,91271.0,91266.0,0.01095698]
[1767489182245,0.01085638,91271.0,91267.0,0.01095686]
[1767489182702,0.02196,91272.0,91268.0,0.06574045]
[1767489183367,0.03291626,91272.0,91268.0,0.01095674]
[1767489183575,0.00752441,91268.0,91263.0,0.01095734]
[1767489183789,0.00747629,91268.0,91263.0,0.01095734]
[1767489184010,0.06226,91268.0,91263.0,0.06574402]
[1767489184236,0.06226,91268.0,91261.0,0.01574488]
[1767489184237,0.06029555,91267.0,91261.0,0.01574488]
[1767489184419,0.06029555,91267.0,91259.0,0.02667251]
[1767489184745,0.06574155,91267.0,91262.0,0.01095746]
[1767489185146,0.0109571,91265.0,91261.0,0.01095758]
[1767489185747,0.0109571,91265.0,91249.0,0.21918029]
[1767489185748,0.01095818,91256.0,91251.0,0.01095878]
[1767489185955,0.06574882,91257.0,91256.0,4.8e-05]
[1767489186378,0.01095818,91256.0,91252.0,0.01095866]
[1767489186537,0.01095842,91254.0,91251.0,0.02206733]
[1767489186917,0.01095842,91254.0,91251.0,0.03302611]
[1767489187072,0.0109583,91255.0,91254.0,0.04787906]
[1767489187590,0.0109583,91255.0,91251.0,0.02206733]
[1767489187591,0.05479289,91253.0,91251.0,0.02206733]
[1767489188155,0.05479289,91253.0,91251.0,0.06989839]
[1767489188473,0.05479289,91253.0,91251.0,0.02206733]
[1767489189479,0.06575098,91254.0,91253.0,4.8e-05]
[1767489189802,0.01095842,91254.0,91253.0,4.8e-05]
[1767489190013,0.06575101,91254.0,91251.0,0.02206733]
[1767489190217,0.05479328,91253.0,91251.0,0.02206733]
[1767489190426,0.05479328,91253.0,91251.0,0.00252675]
[1767489190629,0.01095938,91246.0,91241.0,0.01095998]
[1767489190788,0.0109595,91245.0,91241.0,0.11359067]
[1767489190989,0.01095938,91246.0,91242.0,0.01095986]
[1767489191396,0.0109595,91245.0,91241.0,0.05879104]
[1767489191616,0.0109595,91245.0,91240.0,0.02196]
[1767489191617,0.06575774,91244.0,91240.0,0.02196]
[1767489191823,0.01095974,91243.0,91240.0,0.02196]
[1767489192196,0.01095974,91243.0,91240.0,0.06979106]
[1767489192606,0.01095974,91243.0,91240.0,0.02196]
[1767489192797,0.01095974,91243.0,91238.0,0.06576152]
[1767489192992,0.01087137,91243.0,91239.0,0.01409832]
[1767489193199,0.01087137,91243.0,91240.0,0.0109601]
[1767489193414,0.01095962,91244.0,91240.0,0.0109601]
[1767489194524,0.05479647,91247.0,91244.0,0.01]
[1767489194525,0.01095926,91247.0,91244.0,0.01]
[1767489194708,0.01095926,91247.0,91245.0,0.04783106]
[1767489195161,0.02196,91259.0,91250.0,0.0109589]
[1767489195394,0.05479194,91255.0,91250.0,0.05878996]
[1767489195579,0.05479194,91255.0,91249.0,0.0657537]
[1767489195580,0.05479194,91255.0,91249.0,0.01095902]
[1767489195782,0.05479269,91254.0,91249.0,0.01095902]
[1767489196000,0.05479194,91255.0,91249.0,0.01095902]
[1767489196001,0.01095854,91253.0,91250.0,0.0109589]
[1767489196206,0.01095842,91254.0,91253.0,0.01]
[1767489196523,0.03291842,91254.0,91251.0,0.01095878]
[1767489196729,0.03291842,91254.0,91250.0,0.0109589]
[1767489197059,0.02196,91253.0,91250.0,0.0109589]
[1767489197902,0.04933869,91251.0,91249.0,0.02671257]
[1767489198099,0.02196,91252.0,91233.0,0.04783106]
[1767489198453,0.01095854,91253.0,91249.0,0.05479465]
[1767489198642,0.000999,91249.0,91244.0,0.01095962]
[1767489198853,0.000999,91249.0,91246.0,0.05479641]
[1767489198995,1e-08,91249.0,91246.0,0.05479641]
[1767489199199,0.02196,91251.0,91248.0,0.01095914]
[1767489199443,0.06574595,91261.0,91254.0,0.05479203]
[1767489199644,0.02196,91258.0,91257.0,0.05479031]
[1767489200045,0.06573687,91273.0,91266.0,0.01095698]
[1767489200249,0.02196,91272.0,91269.0,0.01095662]
[1767489200422,0.01095566,91277.0,91267.0,0.05478431]
[1767489200423,0.000999,91269.0,91267.0,0.06574117]
[1767489200621,0.000999,91269.0,91263.0,0.04783106]
[1767489200622,0.05477471,91283.0,91276.0,0.01095578]
[1767489200951,0.06573153,91281.0,91276.0,0.01095578]
[1767489201290,0.00025953,91284.0,91280.0,0.04783106]
[1767489201291,0.05492669,91284.0,91280.0,0.04783106]
[1767489201470,0.05492669,91284.0,91276.0,0.06573418]
[1767489201471,0.02196,91283.0,91278.0,0.01095554]
[1767489201680,0.01095386,91292.0,91288.0,0.01095434]
[1767489201976,0.0547687,91294.0,91292.0,0.04772891]
[1767489202118,0.03768319,91293.0,91286.0,0.01095458]
[1767489202316,0.01095386,91292.0,91288.0,0.01095434]
[1767489203142,0.06572402,91291.0,91287.0,0.01095446]
[1767489203946,0.06029279,91290.0,91283.0,0.05477471]
[1767489204171,0.04933869,91290.0,91285.0,0.05477295]
[1767489204347,0.01095386,91292.0,91285.0,0.05477295]
[1767489204555,0.01095398,91291.0,91287.0,0.01095446]
[1767489205495,0.01095434,91288.0,91284.0,0.01095482]
[1767489205705,0.000999,91287.0,91284.0,0.01095482]
[1767489205919,0.01095326,91297.0,91288.0,0.0687854]
[1767489206130,0.01095362,91294.0,91290.0,0.0109541]
[1767489206341,0.01095326,91297.0,91292.0,0.01095386]
[1767489206559,0.00048626,91298.0,91297.0,0.04783106]
[1767489206739,0.01095302,91299.0,91296.0,0.04783106]
[1767489206890,0.01095302,91299.0,91294.0,0.01095362]
[1767489206891,0.06571865,91299.0,91294.0,0.01095362]
[1767489207102,0.01571865,91299.0,91294.0,0.01095362]
[1767489207444,0.01095326,91297.0,91293.0,0.01095374]
[1767489207658,0.06572029,91296.0,91292.0,0.01095386]
[1767489207862,0.01095338,91296.0,91292.0,0.01095386]
[1767489208188,0.01088411,91297.0,91293.0,0.01095374]
[1767489208391,0.06571933,91298.0,91292.0,0.01095386]
[1767489208609,0.04933869,91297.0,91292.0,0.06572258]
[1767489208823,0.04933869,91297.0,91291.0,0.02049195]
[1767489209384,0.04933869,91297.0,91292.0,0.05476872]
[1767489210002,0.01095326,91297.0,91294.0,0.01095362]
[1767489210208,0.01095326,91297.0,91293.0,0.01095374]
[1767489210412,0.01095338,91296.0,91293.0,0.01095374]
[1767489210615,0.01095326,91297.0,91293.0,0.01095374]
[1767489210942,0.04591533,91288.0,91274.0,0.02196]
[1767489211108,0.04591533,91288.0,91275.0,0.04956308]
[1767489211109,0.01095518,91281.0,91275.0,0.04956308]
[1767489211310,0.0109547,91285.0,91281.0,0.01]
[1767489211514,0.01095482,91284.0,91280.0,0.0109553]
[1767489211918,0.0109547,91285.0,91282.0,0.04526368]
[1767489212319,0.05477171,91288.0,91283.0,0.05631862]
[1767489212500,0.02196,91287.0,91283.0,0.05631862]
[1767489212701,0.02196,91287.0,91283.0,0.01095494]
[1767489213934,0.000999,91283.0,91280.0,0.0109553]
[1767489214139,0.01095602,91274.0,91266.0,0.01095698]
[1767489214308,0.01095602,91274.0,91263.0,0.05632102]
[1767489214309,0.01095674,91268.0,91267.0,0.00010215]
[1767489214496,0.01088759,91268.0,91267.0,0.00010215]
[1767489214693,0.01088759,91268.0,91267.0,1.5e-07]
[1767489215293,0.0109565,91270.0,91267.0,1.5e-07]
[1767489215498,0.0656375,91270.0,91267.0,1.5e-07]
[1767489215950,0.01095638,91271.0,91268.0,0.01095674]
[1767489216165,0.06573654,91274.0,91269.0,0.01095662]
[1767489216514,0.06573654,91274.0,91270.0,0.0109565]
[1767489216923,0.01095638,91271.0,91267.0,1.5e-07]
[1767489217167,0.07573953,91270.0,91267.0,1.5e-07]
[1767489217599,0.01095626,91272.0,91267.0,1.5e-07]
[1767489217776,0.01095614,91273.0,91269.0,0.01095662]
[1767489218175,0.01095614,91273.0,91270.0,0.0109565]
[1767489218339,0.01095602,91274.0,91270.0,0.0109565]
[1767489218950,0.01095614,91273.0,91270.0,0.0099575]
[1767489219275,0.01095638,91271.0,91267.0,1.5e-07]
[1767489219478,0.01095758,91261.0,91256.0,0.01095818]
[1767489219727,0.01095758,91261.0,91251.0,0.08916368]
[1767489219728,0.0109577,91260.0,91252.0,0.01111066]
[1767489219902,0.01095866,91252.0,91246.0,0.01095938]
[1767489220112,0.0109589,91250.0,91247.0,0.01095926]
[1767489220446,0.01095878,91251.0,91248.0,0.01095914]
[1767489220580,0.05479352,91252.0,91246.0,0.00010753]
[1767489220785,0.01095878,91251.0,91247.0,0.01095926]
[1767489220984,0.0109589,91250.0,91247.0,0.01095926]
[1767489221385,0.0099599,91250.0,91247.0,0.01095926]
[1767489221604,0.01095878,91251.0,91248.0,0.01095914]
[1767489221807,0.05479512,91249.0,91246.0,0.00010753]
[1767489222008,0.01099884,91248.0,91246.0,0.00010753]
[1767489222498,0.01095902,91249.0,91246.0,0.01106691]
[1767489222699,0.01095902,91249.0,91246.0,0.00010753]
[1767489222923,0.05479572,91248.0,91246.0,0.00010753]
[1767489223483,0.05479572,91248.0,91246.0,5.3e-07]
[1767489223721,0.01095902,91249.0,91246.0,5.3e-07]
[1767489224173,0.04926733,91248.0,91238.0,0.21748444]
[1767489224377,0.04926733,91248.0,91241.0,0.05116744]
[1767489224979,0.04926733,91248.0,91244.0,0.01095962]
[1767489225599,0.000892,91244.0,91243.0,0.01095974]
[1767489225988,0.01095938,91246.0,91243.0,0.01095974]
[1767489226184,0.08771473,91249.0,91244.0,0.01095962]
[1767489226585,0.01095926,91247.0,91243.0,0.01095974]
[1767489226935,0.01095926,91247.0,91244.0,0.04536368]
[1767489227582,0.06575607,91247.0,91244.0,0.04536368]
[1767489227783,0.000892,91244.0,91242.0,0.01095986]
[1767489228153,0.0109595,91245.0,91242.0,0.01095986]
[1767489228353,0.01095926,91247.0,91243.0,0.06575846]
[1767489228619,0.01095914,91248.0,91245.0,0.000107]
[1767489228809,0.06575537,91248.0,91243.0,0.01095974]
[1767489229393,0.06575537,91248.0,91243.0,0.05632342]
[1767489230008,0.01095938,91246.0,91243.0,0.05632342]
[1767489231341,0.01095938,91246.0,91243.0,0.03447184]
[1767489231770,0.06575675,91246.0,91243.0,0.03447184]
[1767489232136,0.05479812,91244.0,91243.0,0.03447184]
[1767489232342,0.01095998,91241.0,91235.0,0.05632438]
[1767489232621,0.0109601,91240.0,91237.0,0.01096046]
[1767489232824,0.0109601,91240.0,91237.0,0.05632414]
[1767489233561,0.06575746,91245.0,91240.0,0.0109601]
[1767489233790,0.000999,91240.0,91237.0,0.05632414]
[1767489234001,0.01095974,91243.0,91237.0,0.01096046]
[1767489234211,0.01095998,91241.0,91236.0,0.03136013]
[1767489234419,0.01095998,91241.0,91234.0,0.05495528]
[1767489234658,0.01095998,91241.0,91236.0,0.06576299]
[1767489235227,0.0109601,91240.0,91237.0,0.01096046]
[1767489235427,0.01096022,91239.0,91234.0,0.01111282]
[1767489235647,0.0109601,91240.0,91234.0,0.01111282]
[1767489235648,0.0109601,91240.0,91239.0,0.04536368]
[1767489235856,0.0109601,91240.0,91239.0,0.04436468]
[1767489236914,0.0109601,91240.0,91235.0,0.0109607]
[1767489236915,0.01096046,91237.0,91235.0,0.04536368]
[1767489237199,0.00996146,91237.0,91235.0,0.04536368]
[1767489237401,0.06476423,91237.0,91234.0,0.000152]
[1767489238015,0.06576153,91239.0,91234.0,0.01111282]
[1767489238209,0.01095998,91241.0,91238.0,0.01096034]
[1767489238412,0.00444932,91246.0,91243.0,0.01095974]
[1767489238611,0.01095878,91251.0,91247.0,0.01095926]
[1767489238793,0.0329189,91250.0,91246.0,0.01095938]
[1767489238994,0.01095926,91247.0,91243.0,0.05632342]
[1767489239273,0.01095926,91247.0,91243.0,0.01095974]
[1767489240009,0.0329189,91250.0,91247.0,0.01095926]
[1767489240192,0.08771385,91250.0,91247.0,0.00999999]
[1767489240342,0.01095914,91248.0,91245.0,0.0109595]
[1767489240720,0.01095914,91248.0,91244.0,0.01095962]
[1767489241994,0.35682972,91270.0,91244.0,0.01095962]
[1767489241995,0.0547931,91253.0,91249.0,0.04736771]
[1767489242173,0.000999,91249.0,91248.0,0.01095914]
[1767489242378,0.01095878,91251.0,91248.0,0.01095914]
[1767489242790,0.01095866,91252.0,91248.0,0.01095914]
[1767489243191,0.08771164,91253.0,91248.0,0.01066032]
[1767489243356,0.01095866,91252.0,91248.0,0.01066032]
[1767489243566,0.02196,91253.0,91251.0,0.01095878]
[1767489244004,0.02196,91253.0,91250.0,0.0109589]
[1767489244283,0.03291854,91253.0,91250.0,0.0109589]
[1767489244698,0.04591567,91252.0,91250.0,0.01575282]
[1767489244900,0.03591568,91252.0,91245.0,0.21918923]
[1767489245321,0.01095854,91253.0,91246.0,0.04736771]
[1767489245527,0.03291854,91253.0,91246.0,0.04736771]
[1767489245698,0.03291818,91256.0,91251.0,0.04736771]
[1767489246038,0.0329849,91256.0,91251.0,0.04736771]
[1767489246383,6.672e-05,91256.0,91252.0,0.01095866]
[1767489246582,0.0329849,91256.0,91252.0,0.01095866]